bitfinex/quotes_ETHUSD_20240612
["timestamp","ask_amount","ask_price","bid_price","bid_amount"]
[1718222599891,1.43344514,3527.8,3526.4,1.701]
[1718222600489,0.55,3527.7,3526.1,4.701]
[1718222600788,1.43344514,3527.6,3526.2,1.701]
[1718222601019,1.43344514,3527.6,3526.3,0.1701]
[1718222601181,1.43344514,3527.6,3526.4,1.701]
[1718222601582,6.9547,3527.9,3526.4,1.701]
[1718222601886,8.38814514,3527.9,3526.5,0.05670274]
[1718222602052,8.38814514,3527.9,3526.7,1.701]
[1718222602253,8.38814514,3527.9,3526.8,0.05669728]
[1718222602896,8.38814514,3527.9,3526.7,1.701]
[1718222603409,1.43344514,3527.8,3526.4,1.701]
[1718222605368,1.43344514,3527.7,3526.4,1.701]
[1718222605564,6.8066,3528.5,3526.6,1.9848]
[1718222605807,6.8066,3528.5,3526.9,1.701]
[1718222605808,1.43344514,3528.4,3526.9,1.701]
[1718222606022,6.8066,3528.5,3527.0,0.05669064]
[1718222606326,1.43344514,3528.5,3527.1,1.701]
[1718222606469,1.43344514,3528.5,3527.2,0.05668788]
[1718222606665,6.777,3529.1,3527.4,1.701]
[1718222606902,1.43344514,3529.0,3527.5,0.05668634]
[1718222607393,1.43344514,3528.6,3527.1,4.701]
[1718222607709,1.43344514,3528.6,3527.2,3.0]
[1718222608009,1.43344514,3528.6,3526.6,1.701]
[1718222608010,1.43344514,3528.4,3526.6,1.701]
[1718222608213,8.66184514,3528.4,3526.6,1.701]
[1718222608514,1.43344514,3527.8,3526.2,1.701]
[1718222608760,1.43344514,3527.4,3525.7,0.27730126]
[1718222608947,1.43344514,3527.4,3525.3,0.14931581]
[1718222609244,0.55,3527.3,3525.4,0.41644158]
[1718222609446,1.43344514,3527.2,3525.4,0.41644158]
[1718222609604,1.43344514,3527.2,3525.5,1.701]
[1718222609800,0.55,3527.1,3525.5,1.701]
[1718222610005,1.43344514,3527.0,3525.5,1.701]
[1718222610246,1.43344514,3527.0,3525.6,1.91274416]
[1718222610447,6.814,3527.5,3525.9,1.701]
[1718222610751,6.814,3527.5,3526.0,0.05670718]
[1718222610752,1.43344514,3527.4,3526.0,0.05670718]
[1718222611604,1.43344514,3527.4,3525.8,4.701]
[1718222611850,1.43344514,3527.4,3525.8,1.701]
[1718222612021,1.43344514,3527.4,3526.0,1.701]
[1718222612367,1.43344514,3527.4,3526.1,0.0567125]
[1718222612879,7.2355,3528.3,3526.2,2.5637735]
[1718222613145,7.2355,3528.3,3526.4,1.701]
[1718222613146,1.43344514,3528.2,3526.4,1.701]
[1718222613373,1.43344514,3528.2,3526.6,1.701]
[1718222613506,1.43344514,3528.2,3526.6,4.701]
[1718222614652,1.43344514,3528.1,3526.6,4.701]
[1718222614820,0.55,3528.0,3526.6,4.701]
[1718222615160,0.55,3528.0,3525.9,0.19127442]
[1718222615161,1.43344514,3527.9,3526.7,3.0]
[1718222615326,1.43344514,3527.9,3526.0,1.701]
[1718222616412,1.43344514,3527.8,3526.0,1.701]
[1718222616873,1.43344514,3527.8,3526.1,0.05671003]
[1718222617165,1.43344514,3527.8,3526.2,1.701]
[1718222617448,1.43344514,3527.8,3526.4,1.701]
[1718222619308,1.43344514,3527.8,3526.0,1.701]
[1718222619552,0.55,3527.7,3526.0,1.701]
[1718222619749,1.43344514,3527.6,3526.0,1.701]
[1718222621262,1.40636185,3527.6,3526.0,1.701]
[1718222621461,1.40636185,3527.6,3525.9,3.3405915]
[1718222621462,1.40636185,3527.6,3526.2,1.701]
[1718222623232,1.40636185,3527.6,3526.2,4.701]
[1718222624435,7.3314,3527.5,3526.2,3.0]
[1718222624642,1.43344514,3527.4,3526.0,1.701]
[1718222624876,1.43344514,3527.4,3526.1,0.50415941]
[1718222625378,1.43344514,3527.4,3525.8,3.14931969]
[1718222625584,0.55,3527.3,3525.8,4.85031969]
[1718222625877,1.43344514,3527.2,3525.3,2.084]
[1718222626237,1.43344514,3527.2,3525.4,0.2838]
[1718222626238,0.55,3527.1,3525.4,0.2838]
[1718222626441,1.43344514,3527.0,3525.4,1.701]
[1718222626757,1.43258562,3527.0,3525.8,1.701]
[1718222627402,6.7814,3527.5,3526.1,3.785]
[1718222627684,1.43344514,3527.4,3526.2,3.44088144]
[1718222627832,1.43344514,3527.4,3526.3,0.05670843]
[1718222628035,6.7814,3527.5,3526.6,1.701]
[1718222628294,7.1964,3528.4,3526.7,0.05670089]
[1718222628592,7.1964,3528.4,3526.8,0.05670078]
[1718222628593,1.43344514,3528.3,3526.8,0.05670078]
[1718222628737,1.43344514,3528.3,3526.8,0.74087086]
[1718222629592,4.43344514,3528.3,3526.8,0.74087086]
[1718222630083,0.55,3528.2,3526.8,0.74087086]
[1718222630252,1.43344514,3528.1,3526.6,4.701]
[1718222630592,0.55,3528.0,3526.6,4.701]
[1718222630737,1.43344514,3527.9,3526.6,4.701]
[1718222631275,1.43344514,3527.9,3526.7,0.05670427]
[1718222631580,7.1964,3528.4,3526.8,0.05669991]
[1718222631791,7.1964,3528.4,3526.9,1.701]
[1718222631792,1.43344514,3528.3,3526.9,1.701]
[1718222631954,1.43344514,3528.3,3527.0,0.05669588]
[1718222632899,1.43344514,3528.3,3526.9,6.785]
[1718222633040,1.43344514,3528.3,3526.9,4.701]
[1718222633041,0.55,3528.2,3526.9,4.701]
[1718222633246,1.43344514,3528.1,3526.6,4.701]
[1718222633482,1.43344514,3528.1,3526.7,0.6785]
[1718222633741,1.43344514,3528.1,3526.6,4.701]
[1718222633990,0.55,3528.0,3526.3,3.0]
[1718222634280,1.43344514,3527.8,3526.2,5.084]
[1718222634508,6.7763,3526.7,3525.9,0.88807197]
[1718222634637,1.43344514,3526.6,3525.4,0.59204798]
[1718222634837,1.43344514,3526.6,3525.3,0.59204798]
[1718222635061,1.43344514,3526.6,3525.3,0.80269679]
[1718222635266,1.43344514,3526.6,3525.3,2.50369679]
[1718222635891,1.43344514,3526.6,3525.3,0.80269679]
[1718222636102,1.43344514,3526.6,3525.2,3.785]
[1718222636568,1.43344514,3526.6,3525.3,0.05672544]
[1718222636973,1.43344514,3526.6,3525.3,3.05672544]
[1718222637210,1.43344514,3526.6,3525.4,3.0]
[1718222637407,1.43344514,3526.6,3525.1,3.59204798]
[1718222637590,1.43344514,3526.6,3525.2,3.57641323]
[1718222637794,1.43344514,3526.6,3525.3,0.05672543]
[1718222638306,1.43344514,3526.6,3525.2,0.5196878]
[1718222638605,1.43344514,3526.6,3525.3,2.89331899]
[1718222638900,6.7763,3526.7,3525.4,3.0]
[1718222639106,6.7763,3526.7,3525.5,3.76642878]
[1718222639399,6.7763,3526.7,3525.6,3.0]
[1718222639605,7.1332,3527.3,3525.7,2.89302401]
[1718222639900,1.43344514,3527.2,3525.8,3.056714]
[1718222642605,1.43344514,3527.2,3525.9,3.0]
[1718222642774,1.43344514,3527.2,3526.0,0.8618]
[1718222643611,1.43344514,3527.2,3526.2,0.2838]
[1718222643805,1.43344514,3527.2,3526.3,0.0528505]
[1718222644172,7.3947,3527.9,3526.4,0.2838]
[1718222644379,1.43344514,3527.8,3526.5,0.05669921]
[1718222644581,1.43344514,3527.8,3526.7,2.83543]
[1718222644782,1.43344514,3527.8,3526.8,3.05669922]
[1718222645510,1.43344514,3527.8,3526.8,3.0]
[1718222645710,1.43344514,3527.8,3526.5,0.2838]
[1718222646520,0.55,3527.7,3526.5,0.2838]
[1718222646815,1.43344514,3527.6,3526.3,0.2838]
[1718222647314,1.43344514,3527.6,3526.0,0.287368]
[1718222647531,1.43344514,3527.6,3526.1,1.701]
[1718222648027,0.55,3527.5,3526.1,1.701]
[1718222648205,1.43344514,3527.4,3526.1,1.701]
[1718222648405,1.43344514,3527.4,3525.6,4.701]
[1718222648406,1.43344514,3527.3,3525.6,4.701]
[1718222648712,1.98344514,3527.3,3525.6,4.701]
[1718222648902,1.98344514,3527.3,3525.7,0.86890986]
[1718222649102,1.43344514,3527.0,3525.5,0.92996878]
[1718222649321,0.55,3526.9,3525.0,2.78]
[1718222649493,1.43344514,3526.8,3525.1,1.701]
[1718222650512,1.43344514,3526.8,3525.1,4.701]
[1718222650692,1.43344514,3526.8,3525.1,1.85035077]
[1718222651031,1.43344514,3526.8,3525.1,4.85034687]
[1718222651193,1.43344514,3526.8,3525.3,1.701]
[1718222651385,1.43344514,3526.8,3525.3,4.701]
[1718222651791,1.43344514,3526.8,3525.4,0.05671959]
[1718222652020,7.2994,3527.4,3525.6,1.701]
[1718222652224,1.43344514,3527.3,3525.7,0.05671234]
[1718222652435,1.43344514,3527.3,3526.1,1.701]
[1718222652617,7.2994,3527.4,3526.2,0.05670782]
[1718222652808,7.2994,3527.4,3526.3,0.05670352]
[1718222653008,7.2994,3527.4,3526.1,4.701]
[1718222653009,1.43344514,3527.3,3526.1,4.701]
[1718222653230,1.43344514,3527.3,3526.3,1.701]
[1718222655723,1.43344514,3527.3,3526.4,0.05670658]
[1718222656062,6.9676,3528.2,3526.4,0.05670658]
[1718222656356,1.98344514,3528.1,3526.5,1.701]
[1718222656494,1.98344514,3528.1,3526.6,0.59182518]
[1718222656900,1.98344514,3528.1,3526.6,3.59182518]
[1718222657196,1.98344514,3528.1,3526.6,0.59182518]
[1718222658232,1.43344514,3528.0,3526.6,0.53512182]
[1718222658744,0.55,3527.9,3526.6,0.53512182]
[1718222658930,0.55,3527.9,3526.5,3.0]
[1718222658931,1.43344514,3527.8,3526.7,0.73201218]
[1718222659647,1.43344514,3527.8,3526.8,0.05670637]
[1718222659930,1.43344514,3527.8,3526.8,3.84170637]
[1718222660145,6.9676,3528.2,3526.9,4.701]
[1718222660311,1.43344514,3528.1,3527.0,2.51506892]
[1718222660496,1.43344514,3528.1,3527.0,2.45837185]
[1718222661746,7.1066,3528.7,3527.0,2.45837185]
[1718222662042,1.43344514,3528.6,3527.2,1.701]
[1718222662238,1.43344514,3528.6,3527.3,0.05669211]
[1718222663727,1.43344514,3528.6,3527.2,3.0]
[1718222663936,0.55,3528.5,3527.2,3.0]
[1718222664133,1.43344514,3528.4,3527.1,4.09712435]
[1718222664703,1.43344514,3528.4,3527.1,5.79812435]
[1718222664907,1.43344514,3528.4,3527.3,1.701]
[1718222665156,1.43344514,3528.4,3527.3,4.701]
[1718222665307,1.43344514,3528.4,3527.4,0.0566908]
[1718222665504,1.43344514,3528.4,3527.4,0.85047232]
[1718222665941,1.43344514,3528.4,3527.4,3.85047232]
[1718222666843,1.43344514,3528.4,3527.4,3.0]
[1718222667049,1.43344514,3528.4,3527.2,4.701]
[1718222667425,1.43344514,3528.4,3527.2,3.0]
[1718222667728,0.55,3528.3,3526.8,1.701]
[1718222667948,1.43344514,3528.2,3526.8,1.701]
[1718222668275,1.43344514,3528.2,3527.0,1.701]
[1718222668411,1.43344514,3528.2,3527.0,4.701]
[1718222671513,7.1066,3528.7,3527.2,3.784]
[1718222671721,1.43344514,3528.6,3527.4,1.701]
[1718222672416,7.1066,3528.7,3527.7,1.701]
[1718222672615,6.8077,3529.5,3528.1,1.701]
[1718222672985,6.8077,3529.5,3528.4,3.784]
[1718222673114,6.8077,3529.5,3528.5,0.05666981]
[1718222673310,6.8077,3529.5,3528.6,1.701]
[1718222673550,6.8077,3529.5,3528.7,0.05666981]
[1718222673854,7.4958,3530.6,3528.7,0.74073679]
[1718222674027,1.43344514,3530.3,3528.8,0.0566682]
[1718222674938,1.43344514,3530.3,3528.7,0.68406698]
[1718222675140,3.0,3530.5,3528.5,3.0]
[1718222675141,1.43344514,3529.8,3528.5,3.0]
[1718222675318,1.43344514,3529.8,3528.1,2.083]
[1718222675520,0.55,3529.7,3528.1,2.083]
[1718222675713,1.43344514,3529.6,3528.2,0.05560766]
[1718222675951,0.55,3529.5,3528.3,2.35046685]
[1718222676143,1.43344514,3529.4,3528.4,1.701]
[1718222676457,1.43344514,3529.4,3528.5,0.05562582]
[1718222676752,6.8736,3529.9,3528.5,0.05562582]
[1718222676753,6.8736,3529.9,3528.8,2.081]
[1718222676953,1.43344514,3529.8,3528.8,2.081]
[1718222677114,1.43344514,3529.8,3528.9,0.3782]
[1718222678137,1.43344514,3529.8,3528.5,4.701]
[1718222678533,1.43344514,3529.8,3528.6,0.03234941]
[1718222679554,1.43344514,3529.8,3528.5,5.081]
[1718222679555,0.55,3529.7,3528.5,5.081]
[1718222679762,1.43344514,3529.6,3528.5,5.081]
[1718222680056,1.43344514,3529.6,3528.6,0.69958608]
[1718222680562,1.43344514,3529.6,3528.6,0.75625974]
[1718222681948,1.43344514,3529.6,3528.6,0.69958608]
[1718222682268,1.43344514,3529.6,3528.4,4.701]
[1718222683158,1.43344514,3529.6,3528.4,3.0]
[1718222683333,0.55,3529.5,3528.3,2.29486077]
[1718222683539,1.43344514,3529.4,3528.3,2.29486077]
[1718222684544,1.43344514,3529.4,3528.3,0.21386077]
[1718222685034,1.43344514,3529.4,3528.3,3.21386077]
[1718222688073,0.55,3529.3,3528.3,3.0]
[1718222688374,1.43344514,3529.2,3528.0,3.0]
[1718222688529,1.43344514,3529.2,3527.9,4.701]
[1718222689250,6.7639,3529.1,3527.6,0.27662371]
[1718222689451,6.7639,3529.1,3527.3,1.701]
[1718222689452,1.98344514,3529.0,3527.3,1.701]
[1718222690172,1.98344514,3529.0,3527.7,1.701]
[1718222690463,1.98344514,3529.0,3527.2,1.701]
[1718222690638,1.98344514,3529.0,3527.4,1.701]
[1718222690964,1.98344514,3529.0,3527.7,3.782]
[1718222691327,1.98344514,3529.0,3527.4,3.3782]
[1718222691563,1.98344514,3529.0,3527.5,1.701]
[1718222692462,8.79894514,3528.6,3526.8,2.081]
[1718222692667,8.79894514,3528.6,3526.9,1.701]
[1718222692863,0.55,3528.5,3526.9,1.701]
[1718222693076,1.43344514,3528.4,3526.9,1.701]
[1718222693371,0.55,3528.3,3526.9,1.701]
[1718222693542,1.43344514,3528.2,3526.9,1.701]
[1718222693744,1.43344514,3528.2,3526.9,2.10001]
[1718222695042,7.1727,3528.1,3526.9,2.10001]
[1718222695247,1.43344514,3528.0,3526.9,2.10001]
[1718222696539,1.43344514,3528.0,3526.9,0.39901]
[1718222696740,0.55,3527.9,3526.9,0.39901]
[1718222696940,1.43344514,3527.8,3526.9,0.39901]
[1718222697381,1.43344514,3527.8,3527.0,0.418101]
[1718222697944,1.43344514,3527.8,3526.8,2.081]
[1718222699777,1.43344514,3527.8,3526.7,1.701]
[1718222702999,1.43344514,3527.8,3526.6,3.0]
[1718222703000,7.1728,3528.8,3527.4,2.081]
[1718222703194,7.1728,3528.8,3527.5,0.05668972]
[1718222703405,7.1728,3528.8,3527.4,2.081]
[1718222703694,2.081,3528.7,3526.8,1.701]
[1718222704057,5.081,3528.7,3526.8,1.701]
[1718222704261,0.55,3528.6,3526.8,1.701]
[1718222704480,1.43344514,3528.5,3527.0,1.701]
[1718222704677,0.55,3528.4,3527.1,0.04886655]
[1718222704881,1.43344514,3528.3,3527.1,0.04886655]
[1718222705284,3.0,3528.7,3527.3,2.081]
[1718222705468,1.43344514,3528.6,3527.4,1.74986239]
[1718222705669,1.43344514,3528.6,3527.6,1.701]
[1718222705869,0.57237936,3529.6,3527.8,1.701]
[1718222705870,7.0088,3529.6,3527.8,1.701]
[1718222706084,1.43344514,3529.5,3527.9,0.04887585]
[1718222706325,1.43344514,3529.5,3528.2,1.701]
[1718222707804,1.43344514,3529.2,3527.4,0.59351161]
[1718222708106,1.43344514,3529.0,3526.9,2.5511]
[1718222708276,7.0088,3528.8,3527.0,3.0]
[1718222708484,1.03060202,3528.7,3526.7,3.0]
[1718222708690,1.43344514,3528.5,3526.7,1.701]
[1718222708892,0.55,3528.4,3526.7,4.701]
[1718222709205,1.43344514,3528.3,3526.9,1.701]
[1718222709365,7.0088,3528.8,3527.5,1.701]
[1718222709565,1.43344514,3528.7,3527.5,2.0792]
[1718222709768,1.43344514,3528.7,3527.5,0.3782]
[1718222709982,1.43344514,3528.7,3527.2,1.701]
[1718222710203,7.0088,3528.8,3527.5,1.701]
[1718222710414,8.44224514,3528.8,3527.6,0.01561362]
[1718222710607,7.0589,3529.3,3527.9,1.701]
[1718222710813,8.49234514,3529.3,3528.1,1.701]
[1718222711134,1.43344514,3529.3,3528.2,0.03896268]
[1718222711292,1.43344514,3529.3,3528.2,0.05647727]
[1718222711490,1.43344514,3529.3,3528.0,0.3782]
[1718222711491,1.43344514,3529.2,3528.0,2.0792]
[1718222711829,0.14334451,3529.1,3527.5,2.081]
[1718222712131,1.43344514,3529.0,3527.5,2.081]
[1718222712642,7.1318,3528.9,3527.6,1.701]
[1718222712845,1.43344514,3528.8,3527.5,2.081]
[1718222713533,0.55,3528.7,3527.2,1.701]
[1718222713734,1.43344514,3528.6,3527.2,1.701]
[1718222714038,0.55,3528.5,3527.2,1.701]
[1718222714249,1.43344514,3528.4,3527.2,1.701]
[1718222714397,1.43344514,3528.4,3527.3,0.1701]
[1718222715260,1.43344514,3528.4,3527.3,1.8711]
[1718222715891,7.1318,3528.9,3527.3,5.86294405]
[1718222716095,8.56524514,3528.9,3527.4,0.05668042]
[1718222716346,8.56524514,3528.9,3527.6,1.701]
[1718222716630,8.56524514,3528.9,3527.7,0.05668044]
[1718222717009,8.56524514,3528.9,3527.6,1.701]
[1718222718162,1.43344514,3528.8,3527.6,1.701]
[1718222720046,1.43344514,3528.8,3527.3,1.701]
[1718222720210,0.55,3528.7,3527.3,1.701]
[1718222720405,1.43344514,3528.6,3527.3,1.701]
[1718222720805,1.43344514,3528.6,3526.8,1.701]
[1718222721325,1.43344514,3528.6,3526.8,4.701]
[1718222722239,1.43344514,3528.6,3527.0,1.701]
[1718222722443,1.43344514,3528.6,3527.4,1.701]
[1718222723311,1.43344514,3528.6,3527.5,0.05668692]
[1718222723548,7.1318,3528.9,3527.5,0.05668692]
[1718222723861,8.56524514,3528.9,3527.5,1.75768692]
[1718222724050,8.56524514,3528.9,3527.7,1.701]
[1718222724230,7.3187,3529.7,3528.1,1.701]
[1718222724554,1.43344514,3529.6,3528.2,0.02238813]
[1718222724930,0.57237936,3530.2,3528.6,0.2838]
[1718222725151,7.3187,3530.3,3528.7,1.701]
[1718222725362,7.3187,3530.3,3528.9,1.701]
[1718222725526,8.75214514,3530.3,3528.9,1.701]
[1718222726657,1.43344514,3530.3,3528.9,4.701]
[1718222727352,0.57237936,3531.3,3529.9,2.83293]
[1718222727550,8.22530895,3531.8,3530.1,1.701]
[1718222727551,1.43344514,3531.2,3530.1,1.701]
[1718222727757,7.65526904,3531.8,3530.1,4.53377]
[1718222727758,7.36907936,3531.8,3530.1,4.53377]
[1718222728261,6.7967,3531.8,3530.1,4.53377]
[1718222728468,1.43344514,3531.7,3530.1,4.53377]
[1718222728916,1.43344514,3531.7,3530.2,0.03111469]
[1718222729080,1.43344514,3531.7,3530.1,1.701]
[1718222729569,6.7967,3531.8,3529.6,5.777]
[1718222729570,1.43344514,3531.6,3529.9,1.701]
[1718222729863,1.43344514,3531.6,3530.0,0.05654888]
[1718222730661,6.7967,3531.8,3530.1,1.701]
[1718222730970,1.43344514,3531.7,3530.3,1.701]
[1718222731153,6.7967,3531.8,3530.5,1.701]
[1718222731359,6.7967,3531.8,3530.6,0.0566321]
[1718222731663,0.07515778,3531.7,3530.6,0.0566321]
[1718222731864,0.07515778,3531.7,3530.5,1.701]
[1718222732071,0.07515778,3531.7,3530.7,1.701]
[1718222732228,0.07515778,3531.7,3530.9,4.53308]
[1718222732437,0.07515778,3531.7,3531.1,1.701]
[1718222732637,6.7955,3533.3,3531.1,1.701]
[1718222732837,1.50962768,3533.2,3531.1,1.701]
[1718222733037,1.50962768,3533.2,3531.3,1.701]
[1718222733038,1.43344514,3532.9,3531.3,1.701]
[1718222733280,0.07625006,3532.8,3531.3,1.701]
[1718222733590,1.43344514,3532.7,3531.3,1.701]
[1718222733914,0.07615078,3532.6,3531.3,1.701]
[1718222734185,1.43344514,3532.5,3530.7,1.701]
[1718222734401,8.19064514,3532.4,3530.9,1.701]
[1718222734539,3.0,3532.3,3530.9,1.701]
[1718222734739,1.43344514,3532.2,3530.9,1.701]
[1718222734952,0.55,3532.1,3530.9,1.701]
[1718222735169,1.43344514,3532.0,3530.9,1.701]
[1718222735447,0.62580319,3531.9,3530.3,1.701]
[1718222735752,1.43344514,3531.8,3530.3,1.701]
[1718222736107,0.55,3531.7,3530.3,1.701]
[1718222736257,0.55,3531.7,3530.4,0.02920612]
[1718222736258,1.43344514,3531.7,3530.4,0.02920612]
[1718222736587,0.07570385,3531.7,3530.4,2.17402061]
[1718222736887,6.7572,3532.4,3530.4,2.17402061]
[1718222737041,1.43344514,3532.1,3530.4,2.17402061]
[1718222737240,0.62573882,3532.0,3530.4,1.701]
[1718222737560,1.43344514,3531.9,3530.4,1.701]
[1718222737872,0.07563949,3531.8,3530.4,1.701]
[1718222738043,1.98344514,3531.7,3530.4,1.701]
[1718222738239,0.07547105,3531.6,3530.5,0.05664155]
[1718222738481,1.43344514,3531.5,3530.5,0.23240571]
[1718222738777,1.43344514,3531.5,3530.4,1.701]
[1718222738987,0.075624,3531.4,3530.4,1.701]
[1718222739289,1.43344514,3531.3,3530.4,1.701]
[1718222739574,0.075624,3531.4,3530.5,0.03148625]
[1718222739776,0.07543481,3531.2,3530.5,0.03148625]
[1718222739979,3.0,3532.3,3530.7,1.701]
[1718222740196,1.43344514,3532.2,3530.7,1.701]
[1718222740386,1.50934209,3532.2,3530.7,1.701]
[1718222740757,1.50934209,3532.2,3530.7,2.9351]
[1718222740958,1.50934209,3532.2,3530.9,1.701]
[1718222741151,1.50934209,3532.2,3531.0,0.05617676]
[1718222741919,1.50934209,3532.2,3530.9,1.701]
[1718222742075,1.50934209,3532.2,3531.0,0.05602118]
[1718222743201,1.43344514,3532.2,3531.0,0.05602118]
[1718222743502,0.07630685,3532.1,3531.2,1.701]
[1718222743711,1.43344514,3532.0,3531.1,0.2345556]
[1718222744037,1.43344514,3532.0,3530.9,1.701]
[1718222744038,0.07619716,3531.9,3530.9,1.701]
[1718222744248,0.07619716,3531.9,3531.0,0.22895349]
[1718222744249,1.5096423,3531.9,3531.0,0.22895349]
[1718222745644,1.43344514,3531.8,3530.7,1.701]
[1718222745956,0.07609782,3531.7,3530.1,4.2341]
[1718222746102,1.43344514,3531.6,3530.1,3.28402432]
[1718222746307,1.98344514,3531.6,3530.1,0.28402432]
[1718222746633,1.98344514,3531.6,3530.3,1.701]
[1718222746836,1.98344514,3531.6,3530.0,2.73]
[1718222747004,7.0061,3531.5,3530.0,2.73]
[1718222747200,2.05911751,3531.4,3530.0,2.73]
[1718222748299,2.05911751,3531.4,3529.8,1.701]
[1718222748504,5.05911751,3531.4,3529.8,1.701]
[1718222748743,5.05911751,3531.4,3529.2,1.701]
[1718222748951,5.05911751,3531.4,3529.4,1.701]
[1718222750023,5.05911751,3531.4,3529.3,1.701]
[1718222752783,1.43344514,3531.1,3529.3,1.701]
[1718222752983,8.70034514,3530.9,3529.3,1.701]
[1718222753278,8.70034514,3530.9,3528.6,1.2341]
[1718222753279,2.05800084,3530.8,3528.9,2.834328]
[1718222753446,5.05800084,3530.8,3528.9,1.701]
[1718222753652,5.05800084,3530.8,3529.1,1.701]
[1718222753862,1.43344514,3530.7,3529.1,1.701]
[1718222754100,0.62459049,3530.6,3529.1,1.701]
[1718222754251,1.43344514,3530.5,3529.1,1.701]
[1718222754579,0.62438045,3530.4,3529.1,1.701]
[1718222754874,1.43344514,3530.3,3529.1,1.88811]
[1718222755092,0.55,3530.2,3529.2,0.05666314]
[1718222755238,1.43344514,3530.1,3529.3,0.05666286]
[1718222755445,3.0,3530.8,3529.3,0.05666286]
[1718222755446,0.07408493,3530.0,3529.3,0.05666286]
[1718222755751,3.0,3530.8,3529.4,1.701]
[1718222755978,4.43344514,3530.8,3529.5,0.0566505]
[1718222756154,0.07449153,3530.7,3529.5,0.0566505]
[1718222756689,0.07449153,3530.7,3529.5,1.701]
[1718222756993,1.98344514,3530.6,3529.5,1.701]
[1718222757400,3.0,3530.8,3529.5,1.701]
[1718222757401,0.07448549,3530.5,3529.5,1.701]
[1718222757559,0.07448549,3530.5,3529.0,1.701]
[1718222757763,3.0,3530.8,3529.0,2.5435179]
[1718222757948,0.07440314,3530.4,3529.2,1.701]
[1718222758149,1.43344514,3530.7,3529.4,1.701]
[1718222758350,0.07437401,3530.3,3529.5,0.03088392]
[1718222758544,7.2669,3530.9,3529.5,0.05665066]
[1718222758857,1.43344514,3530.8,3529.5,0.05665066]
[1718222759787,9.9881,3531.4,3529.5,0.05665066]
[1718222759992,1.98344514,3531.3,3529.7,1.701]
[1718222760298,1.98344514,3531.3,3529.9,1.701]
[1718222760299,1.50832818,3531.3,3529.9,1.701]
[1718222760800,1.50832818,3531.3,3530.0,0.02799247]
[1718222761008,0.07488304,3531.3,3530.2,1.701]
[1718222761297,7.1105,3532.1,3530.4,1.701]
[1718222761791,1.50906105,3532.0,3530.5,0.05663908]
[1718222762380,4.50906105,3532.0,3530.6,1.701]
[1718222762683,0.07561591,3532.0,3531.2,1.701]
[1718222762856,6.9223,3531.9,3531.0,1.701]
[1718222763059,0.55642462,3531.8,3529.9,1.2341]
[1718222763365,0.55642462,3531.8,3529.6,0.84287714]
[1718222763697,0.0758226,3531.8,3530.2,1.2341]
[1718222763871,0.0758226,3531.8,3530.3,2.02681119]
[1718222764070,0.0758226,3531.8,3530.5,1.701]
[1718222764276,0.85856904,3533.5,3530.5,1.701]
[1718222764277,7.2892,3533.6,3531.2,4.53286]
[1718222764457,1.50495301,3533.5,3531.4,1.701]
[1718222764657,1.50495301,3533.5,3531.6,1.701]
[1718222764904,1.50495301,3533.5,3531.7,0.04268814]
[1718222765118,1.50495301,3533.5,3531.8,1.75183723]
[1718222765417,1.43344514,3533.4,3532.0,1.701]
[1718222766302,1.50532669,3533.3,3531.6,1.701]
[1718222766521,1.50532669,3533.3,3531.7,1.701]
[1718222766854,6.8139,3533.2,3531.7,1.701]
[1718222767071,4.50534483,3533.1,3531.7,1.701]
[1718222767553,0.55,3533.0,3531.0,1.701]
[1718222767796,1.43344514,3532.9,3531.0,2.50742284]
[1718222767956,0.55,3532.8,3531.2,1.701]
[1718222768161,1.43344514,3532.7,3531.4,1.701]
[1718222768692,0.07150303,3532.6,3531.4,1.701]
[1718222768897,1.50494817,3532.6,3531.4,1.701]
[1718222769109,1.50494817,3532.6,3531.5,0.05662116]
[1718222769469,0.07150303,3532.6,3531.5,0.05662116]
[1718222769670,6.8139,3533.2,3531.7,1.701]
[1718222769883,2.05557981,3533.1,3531.7,1.701]
[1718222770407,2.05557981,3533.1,3531.8,0.02027178]
[1718222770993,2.05557981,3533.1,3531.8,0.0388121]
[1718222772569,0.07213467,3533.1,3531.7,1.701]
[1718222772914,0.07213467,3533.1,3531.6,3.06232634]
[1718222772915,1.50557981,3533.1,3531.9,1.701]
[1718222773114,0.07213467,3533.1,3531.9,1.701]
[1718222773418,0.07213467,3533.1,3532.5,1.701]
[1718222773621,0.07213467,3533.1,3533.0,4.473]
[1718222773924,6.7518,3534.8,3533.0,4.473]
[1718222774080,6.7518,3534.8,3533.2,1.701]
[1718222774277,0.07103142,3534.7,3533.2,1.701]
[1718222774515,1.43344514,3534.6,3533.2,1.701]
[1718222774720,1.43344514,3534.6,3532.8,3.0]
[1718222774721,1.50442697,3534.6,3533.4,1.701]
[1718222774875,1.50442697,3534.6,3532.6,4.07750112]
[1718222774876,1.43344514,3533.9,3532.3,2.29451161]
[1718222775082,1.43344514,3533.6,3531.8,0.50471263]
[1718222775324,0.07075716,3533.5,3531.9,0.79520263]
[1718222775527,0.07075716,3533.5,3531.5,2.772]
[1718222775528,1.5042023,3533.5,3531.5,2.772]
[1718222775737,1.5042023,3533.5,3531.6,3.62992795]
[1718222775882,1.43344514,3533.5,3531.7,1.701]
[1718222776082,1.43344514,3533.5,3531.7,2.49780525]
[1718222776307,1.43344514,3533.5,3531.9,1.701]
[1718222776503,0.55,3533.4,3531.9,1.701]
[1718222776715,1.43344514,3533.3,3531.9,4.701]
[1718222776976,1.50370614,3533.3,3531.9,4.701]
[1718222778129,0.55,3533.2,3531.9,1.701]
[1718222778332,6.8621,3533.0,3531.4,1.701]
[1718222778508,1.43344514,3532.9,3531.4,1.701]